fUST/lending_fUST_20240822
["ID","MTS","AMOUNT","RATE_DAILY","PERIOD"]
[335522115,1724301071759,-500.0,0.00021917,7]
[335522116,1724301071768,-500.0,0.00021917,7]
[335522117,1724301071777,-500.0,0.00021917,7]
[335522118,1724301071786,-500.0,0.00021917,7]
[335522119,1724301071796,-500.0,0.00021917,7]
[335522120,1724301071806,-500.0,0.00021917,7]
[335522121,1724301071815,-5188.02,0.00021917,7]
[335522122,1724301071824,-796.12,0.00021917,7]
[335522123,1724301071834,-500.0,0.00021917,7]
[335522124,1724301071844,-1116.7,0.00021917,7]
[335522125,1724301071853,-500.0,0.00021917,7]
[335522126,1724301071863,-500.0,0.00021917,7]
[335522127,1724301071874,-500.0,0.00021917,7]
[335522128,1724301071883,-12079.38,0.00021917,7]
[335522129,1724301071893,-500.0,0.00021917,7]
[335522130,1724301071903,-500.0,0.00021917,7]
[335522131,1724301071911,-505.11372755,0.00021917,7]
[335522132,1724301071921,-500.0,0.00021917,7]
[335522133,1724301071930,-5616.34,0.00021917,7]
[335522134,1724301071938,-500.0,0.00021917,7]
[335522135,1724301071948,-622.13,0.00021917,7]
[335522136,1724301071958,-621.37805751,0.00021917,7]
[335522137,1724301071969,-20233.42,0.00021917,7]
[335522138,1724301071980,-2792.0,0.00021917,7]
[335522139,1724301071989,-500.0,0.00021917,7]
[335522140,1724301072003,-9511.85,0.00021917,7]
[335522141,1724301072012,-1146.19,0.00021917,7]
[335522142,1724301072022,-2104.35,0.00021917,7]
[335522143,1724301072031,-500.0,0.00021917,7]
[335522144,1724301072041,-500.0,0.00021917,7]
[335522145,1724301072050,-301.88981744,0.00021917,7]
[335522146,1724301072059,-500.0,0.00021917,7]
[335522147,1724301072069,-500.0,0.00021917,7]
[335522148,1724301072078,-582.69,0.00021917,7]
[335522149,1724301072087,-500.0,0.00021917,7]
[335522150,1724301072097,-500.0,0.00021917,7]
[335522151,1724301072107,-500.0,0.00021917,7]
[335522152,1724301072116,-524.33285102,0.00021917,7]
[335522153,1724301072126,-500.0,0.00021917,7]
[335522154,1724301072135,-500.0,0.00021917,7]
[335522155,1724301072144,-500.0,0.00021917,7]
[335522156,1724301072154,-500.0,0.00021917,7]
[335522157,1724301072163,-500.0,0.00021917,7]
[335522158,1724301072175,-500.0,0.00021917,7]
[335522159,1724301072186,-500.0,0.00021917,7]
[335522160,1724301072196,-2508.45,0.00021917,7]
[335522161,1724301072206,-500.0,0.00021917,7]
[335522162,1724301072216,-2530.18,0.00021917,7]
[335522163,1724301072227,-930.2,0.00021917,7]
[335522164,1724301072238,-500.0,0.00021917,7]
[335522165,1724301072249,-500.0,0.00021917,7]
[335522166,1724301072259,-500.0,0.00021917,7]
[335522167,1724301072270,-1473.89,0.00021917,7]
[335522168,1724301072280,-500.0,0.00021917,7]
[335522169,1724301072289,-1024.08,0.00021917,7]
[335522170,1724301072299,-500.0,0.00021917,7]
[335522171,1724301072308,-500.0,0.00021917,7]
[335522172,1724301072324,-500.0,0.00021917,7]
[335522173,1724301072341,-500.0,0.00021917,7]
[335522174,1724301072357,-578.87,0.00021917,7]
[335522175,1724301072371,-500.0,0.00021917,7]
[335522176,1724301072385,-2995.68,0.00021917,7]
[335522177,1724301072416,-500.0,0.00021917,7]
[335522178,1724301072433,-500.0,0.00021917,7]
[335522179,1724301072451,-1700.92,0.00021917,7]
[335522180,1724301072468,-500.0,0.00021917,7]
[335522181,1724301072484,-500.0,0.00021917,7]
[335522182,1724301072500,-512.20501413,0.00021917,7]
[335522183,1724301072515,-500.0,0.00021917,7]
[335522184,1724301072529,-1516.78,0.00021917,7]
[335522185,1724301072547,-1746.1,0.00021917,7]
[335522186,1724301072563,-500.0,0.00021917,7]
[335522187,1724301072578,-500.0,0.00021917,7]
[335522188,1724301072593,-500.0,0.00021917,7]
[335522189,1724301072605,-500.0,0.00021917,7]
[335522190,1724301072620,-500.0,0.00021917,7]
[335522191,1724301072635,-500.0,0.00021917,7]
[335522192,1724301072655,-9014.83,0.00021917,7]
[335522193,1724301072669,-500.0,0.00021917,7]
[335522194,1724301072684,-500.0,0.00021917,7]
[335522195,1724301072700,-500.0,0.00021917,7]
[335522196,1724301072715,-500.0,0.00021917,7]
[335522197,1724301072731,-2151.56,0.00021917,7]
[335522198,1724301072743,-500.0,0.00021917,7]
[335522199,1724301072755,-733.58,0.00021917,7]
[335522200,1724301072771,-500.0,0.00021917,7]
[335522201,1724301072787,-500.0,0.00021917,7]
[335522202,1724301072800,-500.0,0.00021917,7]
[335522203,1724301072811,-500.0,0.00021917,7]
[335522204,1724301072825,-500.0,0.00021917,7]
[335522205,1724301072837,-500.0,0.00021917,7]
[335522206,1724301072852,-863.24,0.00021917,7]
[335522207,1724301072866,-635.96,0.00021917,7]
[335522208,1724301072878,-500.0,0.00021917,7]
[335522209,1724301072892,-2005.19,0.00021917,7]
[335522210,1724301072904,-500.0,0.00021917,2]
[335522211,1724301072918,-500.0,0.00021917,7]
[335522212,1724301072932,-500.0,0.00021917,7]
[335522213,1724301072948,-500.0,0.00021917,7]
[335522214,1724301072975,-500.0,0.00021917,7]
[335522215,1724301072990,-648.12,0.00021917,7]
[335522216,1724301073005,-500.0,0.00021917,7]
[335522217,1724301073019,-912.69,0.00021917,7]
[335522218,1724301073034,-3577.9,0.00021917,7]
[335522219,1724301073048,-799.92,0.00021917,7]
[335522220,1724301073065,-500.0,0.00021917,7]
[335522221,1724301073080,-1034.94,0.00021917,7]
[335522222,1724301073094,-807.61,0.00021917,7]
[335522223,1724301073107,-500.0,0.00021917,7]
[335522224,1724301073121,-508.07,0.00021917,7]
[335522225,1724301073135,-500.0,0.00021917,7]
[335522226,1724301073149,-500.0,0.00021917,7]
[335522227,1724301073163,-521.09,0.00021917,7]
[335522228,1724301073176,-500.0,0.00021917,7]
[335522229,1724301073189,-500.0,0.00021917,7]
[335522230,1724301073203,-500.0,0.00021917,7]
[335522231,1724301073217,-500.0,0.00021917,7]
[335522232,1724301073229,-500.0,0.00021917,7]
[335522233,1724301073243,-500.0,0.00021917,7]
[335522234,1724301073258,-500.0,0.00021917,7]
[335522235,1724301073272,-472.21971248,0.00021917,7]
[335522236,1724301073285,-543.35,0.00021917,7]
[335522237,1724301073298,-2199.0,0.00021917,7]
[335522238,1724301073311,-1134.35,0.00021917,7]
[335522239,1724301073322,-500.0,0.00021917,7]
[335522240,1724301073335,-733.53,0.00021917,7]
[335522241,1724301073348,-500.0,0.00021917,2]
[335522242,1724301073360,-500.0,0.00021917,7]
[335522243,1724301073374,-500.0,0.00021917,7]
[335522244,1724301073392,-500.0,0.00021917,7]
[335522245,1724301073406,-500.0,0.00021917,7]
[335522246,1724301073420,-500.0,0.00021917,7]
[335522247,1724301073433,-741.48,0.00021917,7]
[335522248,1724301073446,-555.27,0.00021917,7]
[335522249,1724301073459,-500.0,0.00021917,7]
[335522250,1724301073471,-151.0,0.00021918,2]
[335522251,1724301073484,-151.0,0.00021918,2]
[335522252,1724301073497,-151.0,0.00021918,2]
[335522253,1724301073509,-212.660258,0.00021918,2]
[335522254,1724301073523,-160.0,0.00021918,2]
[335522255,1724301073536,-160.0,0.00021918,2]
[335522256,1724301073548,-160.0,0.00021918,2]
[335522257,1724301073561,-550.0,0.00021964,2]
[335522258,1724301073573,-153.7180049,0.00021973,2]
[335522259,1724301073584,-153.0,0.00021973,2]
[335522260,1724301073594,-153.0,0.00021973,2]
[335522261,1724301073604,-1000.0,0.00022,2]
[335522262,1724301073615,-308.0,0.00022,2]
[335522263,1724301073625,-2327.73753014,0.00022115,2]
[335522264,1724301073636,-174.9,0.00022116,2]
[335522265,1724301073650,-708.88575322,0.0002217,2]
[335522266,1724301073662,-308.0,0.00022192,2]
[335522267,1724301073672,-376.9,0.000223,14]
[335522268,1724301073684,-211.66,0.000223,7]
[335522269,1724301073695,-160.39037859,0.00022464,2]
[335522270,1724301073707,-500.0,0.00022465,7]
[335522271,1724301073719,-501.04784145,0.00022465,7]
[335522272,1724301073729,-500.0,0.00022465,7]
[335522273,1724301073740,-500.0,0.00022465,7]
[335522274,1724301073751,-500.0,0.00022465,7]
[335522275,1724301073761,-500.0,0.00022465,7]
[335522276,1724301073771,-500.0,0.00022465,7]
[335522277,1724301073781,-501.82,0.00022465,7]
[335522278,1724301073791,-990.24,0.00022465,7]
[335522279,1724301073801,-500.0,0.00022465,7]
[335522280,1724301073811,-500.0,0.00022465,7]
[335522281,1724301073821,-500.0,0.00022465,7]
[335522282,1724301073832,-500.0,0.00022465,7]
[335522283,1724301073843,-619.67,0.00022465,7]
[335522284,1724301073856,-500.0,0.00022465,7]
[335522285,1724301073866,-500.0,0.00022465,7]
[335522286,1724301073875,-510.05,0.00022465,7]
[335522287,1724301073886,-500.0,0.00022465,7]
[335522288,1724301073898,-613.86,0.00022465,7]
[335522289,1724301073909,-500.0,0.00022465,7]
[335522290,1724301073921,-500.0,0.00022465,7]
[335522291,1724301073931,-500.0,0.00022465,7]
[335522292,1724301073942,-500.0,0.00022465,7]
[335522293,1724301073952,-500.0,0.00022465,7]
[335522294,1724301073962,-500.0,0.00022465,7]
[335522295,1724301073971,-506.04791967,0.00022465,7]
[335522296,1724301073981,-500.0,0.00022465,7]
[335522297,1724301073992,-500.0,0.00022465,7]
[335522298,1724301074001,-500.0,0.00022465,7]
[335522299,1724301074010,-500.0,0.00022465,7]
[335522300,1724301074020,-500.0,0.00022465,7]
[335522301,1724301074030,-500.0,0.00022465,7]
[335522302,1724301074040,-509.32,0.00022465,7]
[335522303,1724301074050,-695.3,0.00022465,7]
[335522304,1724301074059,-944.99,0.00022465,7]
[335522305,1724301074070,-500.0,0.00022465,7]
[335522306,1724301074079,-500.0,0.00022465,7]
[335522307,1724301074089,-500.0,0.00022465,7]
[335522308,1724301074099,-500.0,0.00022465,7]
[335522309,1724301074109,-500.0,0.00022465,7]
[335522310,1724301074119,-500.0,0.00022465,7]
[335522311,1724301074128,-500.0,0.00022465,7]
[335522312,1724301074137,-500.0,0.00022465,7]
[335522313,1724301074147,-500.0,0.00022465,7]
[335522314,1724301074157,-500.0,0.00022465,7]
[335522315,1724301074166,-500.0,0.00022465,7]
[335522316,1724301074175,-500.0,0.00022465,7]
[335522317,1724301074185,-202.1163853,0.00022465,7]
[335522318,1724301074205,-500.0,0.00022465,7]
[335522319,1724301074219,-623.09609782,0.00022465,7]
[335522320,1724301074228,-507.18543555,0.00022465,7]
[335522321,1724301074237,-500.0,0.00022465,7]
[335522322,1724301074246,-2489.9,0.00022465,7]
[335522323,1724301074255,-500.0,0.00022465,7]
[335522324,1724301074273,-500.0,0.00022465,7]
[335522325,1724301074284,-500.0,0.00022465,7]
[335522326,1724301074294,-500.0,0.00022465,7]
[335522327,1724301074304,-500.0,0.00022465,7]
[335522328,1724301074314,-500.0,0.00022465,7]
[335522329,1724301074325,-518.99,0.00022465,7]
[335522330,1724301074335,-500.0,0.00022465,7]
[335522331,1724301074347,-821.02,0.00022465,7]
[335522332,1724301074359,-590.7317733,0.00022465,7]
[335522333,1724301074371,-500.0,0.00022465,7]
[335522334,1724301074385,-362.49867167,0.00022465,7]
[335522335,1724301074397,-500.0,0.00022465,7]
[335522336,1724301074408,-576.78,0.00022465,7]
[335522337,1724301074810,-500.0,0.00022465,7]
[335522338,1724301074821,-253.40674793,0.00022465,7]
[335522339,1724301074833,-500.0,0.00022465,7]
[335522340,1724301074844,-500.0,0.00022465,7]
[335522341,1724301074855,-844.9,0.00022465,7]
[335522342,1724301074864,-500.0,0.00022465,7]
[335522343,1724301074873,-604.62,0.00022465,7]
[335522344,1724301074882,-500.0,0.00022465,7]
[335522345,1724301074891,-500.0,0.00022465,7]
[335522346,1724301074901,-500.0,0.00022465,7]
[335522347,1724301074912,-500.0,0.00022465,7]
[335522348,1724301074922,-500.0,0.00022465,7]
[335522349,1724301074932,-2156.17,0.00022465,7]
[335522350,1724301074943,-500.0,0.00022465,7]
[335522351,1724301074953,-500.0,0.00022465,7]
[335522352,1724301074962,-500.0,0.00022465,7]
[335522353,1724301074971,-537.9,0.00022465,7]
[335522354,1724301074980,-500.0,0.00022465,7]
[335522355,1724301074989,-500.0,0.00022465,7]
[335522356,1724301074998,-500.0,0.00022465,7]
[335522357,1724301075008,-598.79,0.00022465,7]
[335522358,1724301075017,-586.0,0.00022465,7]
[335522359,1724301075027,-500.0,0.00022465,7]
[335522360,1724301075039,-500.0,0.00022465,7]
[335522361,1724301075050,-729.05,0.00022465,7]
[335522362,1724301075059,-500.0,0.00022465,7]
[335522363,1724301075068,-638.49,0.00022465,7]
[335522364,1724301075077,-500.0,0.00022465,7]
[335522365,1724301075087,-500.0,0.00022465,7]
[335522366,1724301075098,-598.56,0.00022465,7]
[335522367,1724301075107,-865.41,0.00022465,7]
[335522368,1724301075117,-500.0,0.00022465,7]
[335522369,1724301075128,-500.0,0.00022465,7]
[335522370,1724301075141,-1875.93,0.00022465,7]
[335522371,1724301075152,-500.0,0.00022465,7]
[335522372,1724301075163,-500.0,0.00022465,7]
[335522373,1724301075175,-859.92,0.00022465,7]
[335522374,1724301075186,-579.36054468,0.00022465,7]
[335522375,1724301075195,-500.0,0.00022465,7]
[335522376,1724301075207,-727.29,0.00022465,7]
[335522377,1724301075219,-500.0,0.00022465,7]
[335522378,1724301075230,-500.0,0.00022465,7]
[335522379,1724301075240,-560.76,0.00022465,7]
[335522380,1724301075251,-500.0,0.00022465,7]
[335522381,1724301075263,-500.0,0.00022465,7]
[335522382,1724301075273,-500.0,0.00022465,7]
[335522383,1724301075283,-61.10637954,0.00022465,7]
[335522439,1724301917055,250.0,9.583e-05,2]
[335522440,1724301917320,250.0,9.61e-05,2]
[335522441,1724301917596,250.0,9.636e-05,2]
[335522442,1724301917735,250.0,9.662e-05,2]
[335522443,1724301918138,250.0,9.688e-05,2]
[335522444,1724301918372,250.0,9.715e-05,2]
[335522445,1724301918591,250.0,9.741e-05,2]
[335522446,1724301919025,250.0,9.767e-05,2]
[335522447,1724301919230,250.0,9.794e-05,2]
[335522448,1724301919437,250.0,9.82e-05,2]
[335522449,1724301919651,250.0,9.846e-05,2]
[335522450,1724301919865,250.0,9.872e-05,2]
[335522451,1724301920084,250.0,9.899e-05,2]
[335522452,1724302004868,8846.82343496,9.524e-05,2]
[335522453,1724302030211,3093.60860983,9.899e-05,2]
[335522454,1724302048189,853.78036826,9.899e-05,2]
[335522455,1724302063250,2713.40505829,9.899e-05,2]
[335522459,1724302081946,24900.0,9.172e-05,2]
[335522460,1724302086196,7017.74354728,9.524e-05,2]
[335522461,1724302104102,9662.24242138,9.524e-05,2]
[335522462,1724302109853,2128.61939316,9.899e-05,2]
[335522463,1724302132154,12489.6081175,9.501e-05,2]
[335522464,1724302136697,8876.5011327,9.426e-05,2]
[335522465,1724302150789,2166.86788154,9.899e-05,2]
[335522466,1724302180785,2166.86788154,9.899e-05,2]
[335522477,1724302205726,729.9682711,9.899e-05,2]
[335522478,1724302207148,811.63417499,9.899e-05,2]
[335522482,1724302225517,1648.9788962,9.899e-05,2]
[335522483,1724302227944,900.8444614,9.899e-05,2]
[335522484,1724302232163,-250.0,9.925e-05,2]
[335522485,1724302232173,-300.0,9.938e-05,2]
[335522486,1724302232183,-189.3113715,9.938e-05,2]
[335522516,1724302238031,-110.6886285,9.938e-05,2]
[335522518,1724302238044,-227.5084395,9.939e-05,2]
[335522519,1724302238056,-1766.94298382,9.939e-05,2]
[335522522,1724302238067,-155.30903657,9.939e-05,2]
[335522524,1724302238076,-223.12053068,9.939e-05,2]
[335522526,1724302238088,-250.0,9.951e-05,2]
[335522528,1724302238101,-250.0,9.978e-05,2]
[335522530,1724302238112,-157.2181013,9.999e-05,2]
[335522532,1724302238122,-157.14223377,9.999e-05,2]
[335522534,1724302238131,-198.30600627,9.999e-05,2]
[335522536,1724302238141,-157.14223377,9.999e-05,2]
[335522540,1724302238160,-413.79261446,0.0001,2]
[335522542,1724302238176,-154.84989578,0.0001,2]
[335522544,1724302238186,-288.06291583,0.0001,2]
[335522546,1724302238196,-250.0,0.00010004,2]
[335522549,1724302238206,-250.0,0.0001003,2]
[335522551,1724302238215,-500.0,0.00010056,2]
[335522554,1724302238237,-250.0,0.00010056,2]
[335522556,1724302238250,-1613.91660303,0.00010081,2]
[335522559,1724302238263,-250.0,0.00010083,2]
[335522561,1724302238277,-160.49093254,0.0001026,2]
[335522564,1724302238291,-180.84519984,0.0001026,2]
[335522566,1724302238304,-154.74467129,0.0001026,2]
[335522569,1724302238317,-665.66397173,0.0001026,2]
[335522571,1724302238328,-320.36544031,0.00010544,2]
[335522573,1724302238339,-320.36544031,0.00010544,2]
[335522575,1724302238350,-342.75995159,0.00010544,2]
[335522577,1724302238361,-8846.82343496,0.00010739,2]
[335522580,1724302238376,-2099.91788715,0.00010739,2]
[335522582,1724302238388,-420.0,0.00010932,2]
[335522584,1724302238402,-210.30219425,0.00010958,2]
[335522586,1724302238415,-1926.07418041,0.00010958,2]
[335522589,1724302238427,-974.54273192,0.00010958,2]
[335522591,1724302238440,-161.84,0.00010959,2]
[335522592,1724302238454,-809.21,0.00010959,2]
[335522593,1724302238467,-154.74467129,0.00011268,2]
[335522594,1724302238480,-51.49240078,0.00011409,2]
[335522595,1724302239022,491.51835346,9.899e-05,2]
[335522599,1724302240127,1001.46796249,9.899e-05,2]
[335522605,1724302242867,1766.94298382,9.899e-05,2]
[335522613,1724302243084,-1613.91660303,0.00010081,2]
[335522614,1724302243096,-378.2660189,0.00011409,2]
[335522615,1724302243108,-23342.81153779,0.00011712,2]
[335522616,1724302243123,-960.11766736,0.00011712,2]
[335522617,1724302243152,-7956.94771954,0.00011712,2]
[335522624,1724302388281,182.42121049,9.899e-05,2]
[335522625,1724302394575,160.49093254,9.899e-05,2]
[335522627,1724302612628,42424.00214827,9.524e-05,2]
[335522628,1724302631921,210.30219425,9.899e-05,2]
[335522629,1724302704928,24900.0,9.843e-05,2]
[335522630,1724302745736,520.80380986,9.899e-05,2]
[335522634,1724302934353,2164.88006848,9.899e-05,2]
[335522635,1724303090628,707.91077823,9.899e-05,2]
[335522636,1724303131649,681.8205116,9.451e-05,2]
[335522637,1724303139771,2143.43585731,9.899e-05,2]
[335522638,1724303202103,202.10558623,9.899e-05,2]
[335522639,1724303234140,42424.00214827,9.524e-05,2]
[335522640,1724303282644,358.17798233,9.899e-05,2]
[335522641,1724303298736,303.94564455,9.899e-05,2]
[335522645,1724303340585,24900.0,9.67e-05,2]
[335522659,1724303430469,210.30219425,9.899e-05,2]
[335522680,1724303438340,-218.13734486,9.938e-05,2]
[335522682,1724303438350,-934.07929589,9.939e-05,2]
[335522684,1724303438360,-520.80380986,9.999e-05,2]
[335522685,1724303438369,-300.0,0.0001008,2]
[335522687,1724303438378,-300.0,0.0001008,2]
[335522689,1724303438388,-15394.74981974,0.00010081,2]
[335522691,1724303438401,-1609.04805411,0.00010081,2]
[335522694,1724303438412,-3797.48736083,0.00010081,2]
[335522695,1724303438422,-160.13751895,0.0001026,2]
[335522697,1724303438431,-154.97045629,0.0001026,2]
[335522699,1724303438441,-250.0,0.00010374,2]
[335522701,1724303438450,-250.0,0.00010403,2]
[335522703,1724303438459,-250.0,0.00010431,2]
[335522705,1724303438469,-250.0,0.0001046,2]
[335522707,1724303438478,-152.43744114,0.00010488,2]
[335522710,1724303438503,-97.56255886,0.00010488,2]
[335522712,1724303438512,-250.0,0.00010517,2]
[335522714,1724303438521,-676.75620768,0.00010544,2]
[335522716,1724303438531,-250.0,0.00010545,2]
[335522718,1724303438541,-250.0,0.00010573,2]
[335522720,1724303438550,-250.0,0.00010602,2]
[335522721,1724303438559,-250.0,0.0001063,2]
[335522723,1724303438569,-250.0,0.00010659,2]
[335522725,1724303438578,-250.0,0.00010687,2]
[335522727,1724303438587,-250.0,0.00010716,2]
[335522729,1724303438596,-215.62694452,0.00010739,2]
[335522731,1724303438605,-19124.10687778,0.00010739,2]
[335522733,1724303438625,-250.0,0.00010744,2]
[335522734,1724303438634,-250.0,0.00010773,2]
[335522736,1724303438644,-250.0,0.00010801,2]
[335522738,1724303438653,-250.0,0.0001083,2]
[335522740,1724303438662,-250.0,0.00010858,2]
[335522742,1724303438671,-250.0,0.00010887,2]
[335522744,1724303438681,-250.0,0.00010915,2]
[335522746,1724303438690,-154.81862306,0.00010958,2]
[335522748,1724303438699,-155.22826621,0.00010958,2]
[335522750,1724303438708,-817.77880387,0.00010958,2]
[335522752,1724303438717,-242.0,0.00011088,2]
[335522754,1724303438726,-420.0,0.00011089,2]
[335522756,1724303438735,-2143.43585731,0.00011712,2]
[335522757,1724303438745,-154.8463532,0.00011712,2]
[335522758,1724303438755,-440.49656002,0.00011987,2]
[335522759,1724303438764,-8850.69093309,0.00011987,2]
[335522760,1724303438773,-587.0,0.00012197,2]
[335522761,1724303438782,-413.79261446,0.00012779,2]
[335522762,1724303438792,-343.20955709,0.00012782,2]
[335522763,1724303438801,-234.59474518,0.00012886,2]
[335522764,1724303438810,-521.48215482,0.00012886,2]
[335522765,1724303438819,-665.66397173,0.00012898,2]
[335522766,1724303438829,-188.6196501,0.00012898,2]
[335522767,1724303438839,-155.45955549,0.00012898,2]
[335522768,1724303438849,-493.47055315,0.0001295,2]
[335522769,1724303438862,-154.76012181,0.00012971,2]
[335522770,1724303438872,-161.80668771,0.00012985,2]
[335522771,1724303438881,-301.6333299,0.00012999,2]
[335522772,1724303438891,-862.74516786,0.00013,2]
[335522773,1724303438900,-378.2660189,0.00013051,2]
[335522774,1724303438909,-378.2660189,0.00013051,2]
[335522775,1724303438918,-823.0,0.00013417,2]
[335522777,1724303438928,-154.76012181,0.00013599,2]
[335522779,1724303438938,-215635.536165,0.00013678,2]
[335522781,1724303438948,-158.15745652,0.00013688,2]
[335522783,1724303438957,-496.07540644,0.00013688,2]
[335522785,1724303438967,-107817.768082,0.00013689,2]
[335522787,1724303438976,-566.03835993,0.00013698,2]
[335522789,1724303438985,-365.6671928,0.00013698,2]
[335522792,1724303438995,-168.56281588,0.00013698,2]
[335522793,1724303439005,-3000.0,0.00013699,2]
[335522794,1724303439014,-194.87445923,0.00013699,2]
[335522795,1724303439024,-500.0,0.00013699,2]
[335522796,1724303439033,-500.0,0.00013699,2]
[335522797,1724303439042,-500.0,0.00013699,2]
[335522798,1724303439051,-500.0,0.00013699,2]
[335522799,1724303439060,-500.0,0.00013699,2]
[335522800,1724303439069,-500.0,0.00013699,2]
[335522801,1724303439078,-500.0,0.00013699,2]
[335522802,1724303439087,-500.0,0.00013699,2]
[335522803,1724303439097,-500.0,0.00013699,2]
[335522804,1724303439106,-500.0,0.00013699,2]
[335522805,1724303439115,-500.0,0.00013699,2]
[335522806,1724303439124,-500.0,0.00013699,2]
[335522807,1724303439136,-500.0,0.00013699,2]
[335522808,1724303439147,-500.0,0.00013699,2]
[335522809,1724303439159,-500.0,0.00013699,2]
[335522810,1724303439172,-500.0,0.00013699,2]
[335522811,1724303439183,-500.0,0.00013699,2]
[335522812,1724303439194,-500.0,0.00013699,2]
[335522813,1724303439205,-500.0,0.00013699,2]
[335522814,1724303439218,-500.0,0.00013699,2]
[335522815,1724303439228,-500.0,0.00013699,2]
[335522816,1724303439238,-500.0,0.00013699,2]
[335522817,1724303439248,-500.0,0.00013699,2]
[335522818,1724303439258,-500.0,0.00013699,2]
[335522819,1724303439269,-500.0,0.00013699,2]
[335522820,1724303439280,-500.0,0.00013699,2]
[335522821,1724303439290,-500.0,0.00013699,2]
[335522822,1724303439300,-500.0,0.00013699,2]
[335522823,1724303439312,-500.0,0.00013699,2]
[335522824,1724303439322,-500.0,0.00013699,2]
[335522825,1724303439333,-500.0,0.00013699,2]
[335522826,1724303439344,-500.0,0.00013699,2]
[335522827,1724303439356,-391.80546457,0.00013699,2]
[335522828,1724303439367,-500.0,0.00013699,2]
[335522829,1724303439376,-500.0,0.00013699,2]
[335522830,1724303439385,-500.0,0.00013699,2]
[335522831,1724303439398,-500.0,0.00013699,2]
[335522832,1724303439407,-500.0,0.00013699,2]
[335522833,1724303439416,-500.0,0.00013699,2]
[335522834,1724303439425,-500.0,0.00013699,2]
[335522835,1724303439435,-500.0,0.00013699,2]
[335522836,1724303439445,-500.0,0.00013699,2]
[335522837,1724303439455,-500.0,0.00013699,2]
[335522838,1724303439465,-500.0,0.00013699,2]
[335522839,1724303439475,-500.0,0.00013699,2]
[335522840,1724303439485,-500.0,0.00013699,2]
[335522841,1724303439494,-500.0,0.00013699,2]
[335522842,1724303439503,-500.0,0.00013699,2]
[335522843,1724303439513,-500.0,0.00013699,2]
[335522844,1724303439522,-500.0,0.00013699,2]
[335522845,1724303439531,-500.0,0.00013699,2]
[335522846,1724303439540,-500.0,0.00013699,2]
[335522847,1724303439550,-500.0,0.00013699,2]
[335522848,1724303439559,-500.0,0.00013699,2]
[335522849,1724303439570,-500.0,0.00013699,2]
[335522850,1724303439581,-300.0,0.00013699,2]
[335522851,1724303439591,-500.0,0.00013699,2]
[335522852,1724303439601,-154.80178975,0.00014,2]
[335522853,1724303439611,-288.536112,0.00014247,2]
[335522854,1724303439627,-159.925616,0.00014247,2]
[335522855,1724303439637,-1152.0,0.00014759,2]
[335522856,1724303439649,-312.27806585,0.00014979,2]
[335522857,1724303439661,-500.0,0.00014979,2]
[335522858,1724303439671,-500.0,0.00014979,2]
[335522859,1724303439683,-500.0,0.00014979,2]
[335522860,1724303439695,-500.0,0.00014979,2]
[335522861,1724303439705,-500.0,0.00014979,2]
[335522862,1724303439716,-178.03063748,0.00014979,2]
[335522863,1724303439726,-500.0,0.00014979,2]